[Event "Titled Tuesday Blitz September 13 Late 2022"]
[White "Ibrahimli, Murad"]
[Black "Ekdyshman, Mikhail"]
[WhiteFideId "13410229"]
[BlackFideId "4149416"]
[WhiteElo "2109"]
[BlackElo "2146"]
[Result "1-0"]
[Round "03"]
[TimeControl "180+1"]
[Date "2022.09.13"]
[WhiteClock "0:00:10"]
[BlackClock "0:00:09"]

1. d4 {[%clk 0:03:00]}  Nf6 {[%clk 0:02:59]} 2. c4 {[%clk 0:03:00]}  c5 {[%clk 0:02:59]} 3. d5 {[%clk 0:03:00]}  b5 {[%clk 0:03:00]} 4. cxb5 {[%clk 0:02:47]}  a6 {[%clk 0:02:59]} 5. f3 {[%clk 0:02:47]}  axb5 {[%clk 0:02:53]} 6. e4 {[%clk 0:02:47]}  Qa5+ {[%clk 0:02:52]} 7. Bd2 {[%clk 0:02:46]}  b4 {[%clk 0:02:52]} 8. Na3 {[%clk 0:02:47]}  d6 {[%clk 0:02:51]} 9. Nc4 {[%clk 0:02:45]}  Qc7 {[%clk 0:02:51]} 10. Bd3 {[%clk 0:02:39]}  Nbd7 {[%clk 0:02:51]} 11. Ne2 {[%clk 0:02:38]}  g6 {[%clk 0:02:52]} 12. O-O {[%clk 0:02:38]}  Bg7 {[%clk 0:02:52]} 13. Kh1 {[%clk 0:02:31]}  O-O {[%clk 0:02:52]} 14. a3 {[%clk 0:02:07]}  bxa3 {[%clk 0:02:49]} 15. Rxa3 {[%clk 0:02:08]}  Ba6 {[%clk 0:02:44]} 16. Qa1 {[%clk 0:02:02]}  Bxc4 {[%clk 0:02:39]} 17. Bxc4 {[%clk 0:02:00]}  Nb6 {[%clk 0:02:37]} 18. Bb5 {[%clk 0:01:56]}  Rxa3 {[%clk 0:02:33]} 19. Qxa3 {[%clk 0:01:57]}  Ra8 {[%clk 0:02:33]} 20. Qb3 {[%clk 0:01:57]}  Nfd7 {[%clk 0:02:16]} 21. Bc6 {[%clk 0:01:56]}  Ra7 {[%clk 0:02:08]} 22. Nc3 {[%clk 0:01:53]}  c4 {[%clk 0:02:00]} 23. Qc2 {[%clk 0:01:43]}  Ra6 {[%clk 0:01:31]} 24. f4 {[%clk 0:01:25]}  Nc5 {[%clk 0:01:27]} 25. Be3 {[%clk 0:01:24]}  Nbd7 {[%clk 0:01:09]} 26. Nb5 {[%clk 0:01:09]}  Qb8 {[%clk 0:00:53]} 27. e5 {[%clk 0:01:08]}  Rxc6 {[%clk 0:00:33]} 28. dxc6 {[%clk 0:01:08]}  Qxb5 {[%clk 0:00:33]} 29. cxd7 {[%clk 0:01:08]}  Nxd7 {[%clk 0:00:30]} 30. exd6 {[%clk 0:01:02]}  exd6 {[%clk 0:00:27]} 31. Rd1 {[%clk 0:01:01]}  d5 {[%clk 0:00:21]} 32. h3 {[%clk 0:00:28]}  Nf6 {[%clk 0:00:19]} 33. Ra1 {[%clk 0:00:22]}  h6 {[%clk 0:00:18]} 34. f5 {[%clk 0:00:20]}  Kh7 {[%clk 0:00:15]} 35. Ra8 {[%clk 0:00:20]}  Ne4 {[%clk 0:00:13]} 36. fxg6+ {[%clk 0:00:20]}  Kxg6 {[%clk 0:00:11]} 37. Qd1 {[%clk 0:00:17]}  f5 {[%clk 0:00:10]} 38. g4 {[%clk 0:00:08]}  f4 {[%clk 0:00:09]} 39. Bd4 {[%clk 0:00:06]}  f3 {[%clk 0:00:06]} 40. Qxf3 {[%clk 0:00:05]}  Qd7 {[%clk 0:00:04]} 41. Qf5+ {[%clk 0:00:04]}  Qxf5 {[%clk 0:00:05]} 42. gxf5+ {[%clk 0:00:05]}  Kxf5 {[%clk 0:00:03]} 43. Bxg7 {[%clk 0:00:05]}  Nf2+ {[%clk 0:00:02]} 44. Kg2 {[%clk 0:00:05]}  Nd3 {[%clk 0:00:03]} 45. Rd8 {[%clk 0:00:04]}  Kg6 {[%clk 0:00:03]} 46. Bd4 {[%clk 0:00:03]}  Kf7 {[%clk 0:00:03]} 47. Kh2 {[%clk 0:00:04]}  Ke6 {[%clk 0:00:03]} 48. Rh8 {[%clk 0:00:04]}  Kf5 {[%clk 0:00:03]} 49. Re8 {[%clk 0:00:03]}  Ne1 {[%clk 0:00:02]} 50. Rxe1 {[%clk 0:00:02]}  h5 {[%clk 0:00:03]} 51. Re5+ {[%clk 0:00:03]}  Kf4 {[%clk 0:00:03]} 52. Rxd5 {[%clk 0:00:04]}  Ke4 {[%clk 0:00:04]} 53. Rxh5 {[%clk 0:00:05]}  Kxd4 {[%clk 0:00:05]} 54. Rh4+ {[%clk 0:00:05]}  Kd3 {[%clk 0:00:05]} 55. Rxc4 {[%clk 0:00:06]}  Kxc4 {[%clk 0:00:05]} 56. Kg3 {[%clk 0:00:07]}  Kb3 {[%clk 0:00:06]} 57. h4 {[%clk 0:00:07]}  Kxb2 {[%clk 0:00:07]} 58. h5 {[%clk 0:00:08]}  Kc3 {[%clk 0:00:08]} 59. h6 {[%clk 0:00:09]}  Kd4 {[%clk 0:00:09]} 60. h7 {[%clk 0:00:10]} 1-0


[Site "https://www.chess.com"]

[Event "Titled Tuesday Blitz September 13 Late 2022"]
[White "Janaszak, Dawid"]
[Black "Melkumyan, Hrant"]
[WhiteFideId "1119206"]
[BlackFideId "13302485"]
[WhiteElo "2165"]
[BlackElo "2604"]
[Result "1/2-1/2"]
[Round "03"]
[TimeControl "180+1"]
[Date "2022.09.13"]
[WhiteClock "0:00:15"]
[BlackClock "0:00:01"]

1. e4 {[%clk 0:03:00]}  c5 {[%clk 0:02:59]} 2. Nc3 {[%clk 0:02:59]}  g6 {[%clk 0:02:57]} 3. Bc4 {[%clk 0:02:58]}  Bg7 {[%clk 0:02:57]} 4. h4 {[%clk 0:02:56]}  Nc6 {[%clk 0:02:50]} 5. h5 {[%clk 0:02:54]}  d6 {[%clk 0:02:51]} 6. d3 {[%clk 0:02:51]}  Nf6 {[%clk 0:02:36]} 7. h6 {[%clk 0:02:44]}  Bf8 {[%clk 0:02:36]} 8. Bg5 {[%clk 0:02:43]}  e6 {[%clk 0:02:33]} 9. Nge2 {[%clk 0:02:30]}  Be7 {[%clk 0:02:33]} 10. f4 {[%clk 0:02:04]}  a6 {[%clk 0:02:33]} 11. a4 {[%clk 0:02:03]}  Bd7 {[%clk 0:02:29]} 12. Qd2 {[%clk 0:02:00]}  Ng4 {[%clk 0:02:25]} 13. Bxe7 {[%clk 0:01:52]}  Qxe7 {[%clk 0:02:25]} 14. d4 {[%clk 0:01:45]}  cxd4 {[%clk 0:02:18]} 15. Nxd4 {[%clk 0:01:44]}  Rc8 {[%clk 0:02:17]} 16. O-O-O {[%clk 0:01:39]}  Nxd4 {[%clk 0:02:03]} 17. Qxd4 {[%clk 0:01:39]}  e5 {[%clk 0:02:04]} 18. fxe5 {[%clk 0:01:25]}  dxe5 {[%clk 0:01:49]} 19. Qxd7+ {[%clk 0:00:59]}  Qxd7 {[%clk 0:01:50]} 20. Rxd7 {[%clk 0:00:57]}  Kxd7 {[%clk 0:01:51]} 21. Bxf7 {[%clk 0:00:57]}  Nf6 {[%clk 0:01:51]} 22. Nd5 {[%clk 0:00:49]}  Nxd5 {[%clk 0:01:45]} 23. Bxd5 {[%clk 0:00:50]}  b6 {[%clk 0:01:46]} 24. Bb7 {[%clk 0:00:43]}  Rc4 {[%clk 0:01:45]} 25. b3 {[%clk 0:00:41]}  Rc3 {[%clk 0:01:33]} 26. Bxa6 {[%clk 0:00:36]}  Rf8 {[%clk 0:01:34]} 27. Rd1+ {[%clk 0:00:35]}  Ke7 {[%clk 0:01:31]} 28. Kb2 {[%clk 0:00:27]}  Rc7 {[%clk 0:01:26]} 29. Rd5 {[%clk 0:00:27]}  Rf2 {[%clk 0:01:26]} 30. Bc4 {[%clk 0:00:23]}  Rc5 {[%clk 0:01:24]} 31. Rxc5 {[%clk 0:00:22]}  bxc5 {[%clk 0:01:23]} 32. a5 {[%clk 0:00:20]}  Kd6 {[%clk 0:01:19]} 33. Bg8 {[%clk 0:00:14]}  Rxg2 {[%clk 0:01:19]} 34. Bxh7 {[%clk 0:00:14]}  g5 {[%clk 0:01:19]} 35. Bf5 {[%clk 0:00:14]}  Rh2 {[%clk 0:01:15]} 36. h7 {[%clk 0:00:14]}  Kc6 {[%clk 0:01:16]} 37. Kc3 {[%clk 0:00:14]}  Kb5 {[%clk 0:01:14]} 38. a6 {[%clk 0:00:09]}  Kxa6 {[%clk 0:01:11]} 39. Kc4 {[%clk 0:00:10]}  Kb6 {[%clk 0:00:51]} 40. Kd5 {[%clk 0:00:10]}  g4 {[%clk 0:00:49]} 41. Bxg4 {[%clk 0:00:09]}  Rxh7 {[%clk 0:00:50]} 42. Kxe5 {[%clk 0:00:10]}  Rh2 {[%clk 0:00:50]} 43. c3 {[%clk 0:00:08]}  Rg2 {[%clk 0:00:36]} 44. Be6 {[%clk 0:00:07]}  Rg5+ {[%clk 0:00:21]} 45. Kf4 {[%clk 0:00:07]}  Rg6 {[%clk 0:00:21]} 46. Kf5 {[%clk 0:00:07]}  Rh6 {[%clk 0:00:17]} 47. b4 {[%clk 0:00:06]}  Rh5+ {[%clk 0:00:17]} 48. Kf4 {[%clk 0:00:06]}  Rh6 {[%clk 0:00:17]} 49. Kf5 {[%clk 0:00:06]}  Rh3 {[%clk 0:00:16]} 50. bxc5+ {[%clk 0:00:05]}  Kxc5 {[%clk 0:00:17]} 51. c4 {[%clk 0:00:05]}  Kd4 {[%clk 0:00:17]} 52. Bd5 {[%clk 0:00:06]}  Rh5+ {[%clk 0:00:15]} 53. Kf4 {[%clk 0:00:06]}  Rh8 {[%clk 0:00:15]} 54. Kf5 {[%clk 0:00:07]}  Rf8+ {[%clk 0:00:14]} 55. Ke6 {[%clk 0:00:08]}  Rb8 {[%clk 0:00:15]} 56. Kd6 {[%clk 0:00:09]}  Rb6+ {[%clk 0:00:14]} 57. Kc7 {[%clk 0:00:09]}  Kc5 {[%clk 0:00:13]} 58. Kd7 {[%clk 0:00:09]}  Ra6 {[%clk 0:00:13]} 59. Ke7 {[%clk 0:00:09]}  Ra7+ {[%clk 0:00:13]} 60. Ke6 {[%clk 0:00:09]}  Ra6+ {[%clk 0:00:13]} 61. Ke5 {[%clk 0:00:09]}  Rh6 {[%clk 0:00:13]} 62. Kf5 {[%clk 0:00:09]}  Kd4 {[%clk 0:00:13]} 63. Kg5 {[%clk 0:00:09]}  Rh8 {[%clk 0:00:13]} 64. Kf5 {[%clk 0:00:10]}  Re8 {[%clk 0:00:13]} 65. Kf6 {[%clk 0:00:10]}  Rb8 {[%clk 0:00:12]} 66. e5 {[%clk 0:00:10]}  Rf8+ {[%clk 0:00:12]} 67. Ke7 {[%clk 0:00:10]}  Rh8 {[%clk 0:00:11]} 68. e6 {[%clk 0:00:11]}  Ke5 {[%clk 0:00:12]} 69. Kd7 {[%clk 0:00:11]}  Rh7+ {[%clk 0:00:12]} 70. Kc6 {[%clk 0:00:11]}  Ra7 {[%clk 0:00:10]} 71. Kb6 {[%clk 0:00:11]}  Rh7 {[%clk 0:00:09]} 72. Kc6 {[%clk 0:00:11]}  Re7 {[%clk 0:00:09]} 73. Kb6 {[%clk 0:00:11]}  Rg7 {[%clk 0:00:09]} 74. Kc6 {[%clk 0:00:12]}  Rh7 {[%clk 0:00:09]} 75. Kc5 {[%clk 0:00:12]}  Rc7+ {[%clk 0:00:07]} 76. Kb6 {[%clk 0:00:12]}  Kd6 {[%clk 0:00:08]} 77. Kb5 {[%clk 0:00:12]}  Rc8 {[%clk 0:00:07]} 78. Kb4 {[%clk 0:00:12]}  Rb8+ {[%clk 0:00:07]} 79. Kc3 {[%clk 0:00:13]}  Kc5 {[%clk 0:00:07]} 80. Kd3 {[%clk 0:00:13]}  Rh8 {[%clk 0:00:07]} 81. Ke4 {[%clk 0:00:13]}  Kd6 {[%clk 0:00:08]} 82. Kf5 {[%clk 0:00:14]}  Rh2 {[%clk 0:00:08]} 83. Kf6 {[%clk 0:00:14]}  Rf2+ {[%clk 0:00:08]} 84. Kg5 {[%clk 0:00:14]}  Ke7 {[%clk 0:00:08]} 85. Kg4 {[%clk 0:00:14]}  Kf6 {[%clk 0:00:08]} 86. Kg3 {[%clk 0:00:14]}  Rf5 {[%clk 0:00:09]} 87. Kg4 {[%clk 0:00:15]}  Rf1 {[%clk 0:00:06]} 88. Kg3 {[%clk 0:00:15]}  Kg5 {[%clk 0:00:07]} 89. Kg2 {[%clk 0:00:15]}  Re1 {[%clk 0:00:06]} 90. Kf2 {[%clk 0:00:16]}  Re5 {[%clk 0:00:07]} 91. Kf3 {[%clk 0:00:16]}  Kf5 {[%clk 0:00:07]} 92. Kg3 {[%clk 0:00:16]}  Re3+ {[%clk 0:00:06]} 93. Kf2 {[%clk 0:00:16]}  Kf4 {[%clk 0:00:07]} 94. Kg2 {[%clk 0:00:16]}  Re2+ {[%clk 0:00:07]} 95. Kf1 {[%clk 0:00:16]}  Re5 {[%clk 0:00:07]} 96. Kf2 {[%clk 0:00:17]}  Rh5 {[%clk 0:00:07]} 97. Ke2 {[%clk 0:00:17]}  Rh3 {[%clk 0:00:04]} 98. Kd2 {[%clk 0:00:17]}  Re3 {[%clk 0:00:02]} 99. Kc2 {[%clk 0:00:17]}  Ke5 {[%clk 0:00:03]} 100. Kd2 {[%clk 0:00:17]}  Kd4 {[%clk 0:00:03]} 101. Kc2 {[%clk 0:00:17]}  Re2+ {[%clk 0:00:02]} 102. Kb3 {[%clk 0:00:17]}  Re1 {[%clk 0:00:03]} 103. Kc2 {[%clk 0:00:17]}  Re2+ {[%clk 0:00:02]} 104. Kb3 {[%clk 0:00:18]}  Re3+ {[%clk 0:00:03]} 105. Kb4 {[%clk 0:00:18]}  Rh3 {[%clk 0:00:01]} 106. Kb5 {[%clk 0:00:18]}  Rh8 {[%clk 0:00:02]} 107. Kc6 {[%clk 0:00:19]}  Ke5 {[%clk 0:00:02]} 108. Kd7 {[%clk 0:00:19]}  Kf6 {[%clk 0:00:02]} 109. c5 {[%clk 0:00:18]}  Rh7+ {[%clk 0:00:02]} 110. Kd6 {[%clk 0:00:18]}  Rh8 {[%clk 0:00:03]} 111. c6 {[%clk 0:00:19]}  Rd8+ {[%clk 0:00:03]} 112. Kc5 {[%clk 0:00:18]}  Ke5 {[%clk 0:00:03]} 113. Bc4 {[%clk 0:00:18]}  Rc8 {[%clk 0:00:03]} 114. Kb6 {[%clk 0:00:18]}  Kd6 {[%clk 0:00:03]} 115. Bb5 {[%clk 0:00:16]}  Rb8+ {[%clk 0:00:04]} 116. Ka5 {[%clk 0:00:15]}  Kc5 {[%clk 0:00:04]} 117. c7 {[%clk 0:00:09]}  Rc8 {[%clk 0:00:02]} 118. Bd7 {[%clk 0:00:08]}  Rxc7 {[%clk 0:00:02]} 119. Ka6 {[%clk 0:00:08]}  Kd6 {[%clk 0:00:02]} 120. Kb6 {[%clk 0:00:08]}  Rc1 {[%clk 0:00:02]} 121. Kb5 {[%clk 0:00:09]}  Rb1+ {[%clk 0:00:03]} 122. Kc4 {[%clk 0:00:09]}  Rc1+ {[%clk 0:00:03]} 123. Kd4 {[%clk 0:00:10]}  Rc7 {[%clk 0:00:03]} 124. Ke4 {[%clk 0:00:11]}  Ra7 {[%clk 0:00:04]} 125. Kd4 {[%clk 0:00:12]}  Rb7 {[%clk 0:00:03]} 126. Kc4 {[%clk 0:00:12]}  Rb8 {[%clk 0:00:04]} 127. Kd4 {[%clk 0:00:13]}  Rb4+ {[%clk 0:00:04]} 128. Kc3 {[%clk 0:00:13]}  Re4 {[%clk 0:00:04]} 129. Kd3 {[%clk 0:00:13]}  Re1 {[%clk 0:00:03]} 130. Kd2 {[%clk 0:00:13]}  Re5 {[%clk 0:00:04]} 131. Kd3 {[%clk 0:00:13]}  Kc5 {[%clk 0:00:05]} 132. Kd2 {[%clk 0:00:13]}  Kc4 {[%clk 0:00:06]} 133. Kc2 {[%clk 0:00:13]}  Re2+ {[%clk 0:00:06]} 134. Kd1 {[%clk 0:00:13]}  Re3 {[%clk 0:00:03]} 135. Kd2 {[%clk 0:00:13]}  Kd4 {[%clk 0:00:03]} 136. Kc2 {[%clk 0:00:13]}  Re2+ {[%clk 0:00:03]} 137. Kb3 {[%clk 0:00:14]}  Re1 {[%clk 0:00:02]} 138. Kc2 {[%clk 0:00:14]}  Kc4 {[%clk 0:00:02]} 139. Kd2 {[%clk 0:00:14]}  Re5 {[%clk 0:00:03]} 140. Kc2 {[%clk 0:00:13]}  Re2+ {[%clk 0:00:01]} 141. Kd1 {[%clk 0:00:14]}  Re4 {[%clk 0:00:02]} 142. Kd2 {[%clk 0:00:14]}  Kd4 {[%clk 0:00:02]} 143. Kc2 {[%clk 0:00:14]}  Re3 {[%clk 0:00:03]} 144. Kb2 {[%clk 0:00:14]}  Re2+ {[%clk 0:00:02]} 145. Kb3 {[%clk 0:00:14]}  Kd5 {[%clk 0:00:02]} 146. Kb4 {[%clk 0:00:14]}  Re3 {[%clk 0:00:01]} 147. Ka4 {[%clk 0:00:13]}  Kc4 {[%clk 0:00:01]} 148. Ka5 {[%clk 0:00:13]}  Kc5 {[%clk 0:00:02]} 149. Ka4 {[%clk 0:00:14]}  Kc4 {[%clk 0:00:02]} 150. Ka5 {[%clk 0:00:14]}  Kc5 {[%clk 0:00:03]} 151. Ka6 {[%clk 0:00:14]}  Re2 {[%clk 0:00:03]} 152. Kb7 {[%clk 0:00:14]}  Kd6 {[%clk 0:00:04]} 153. Kb6 {[%clk 0:00:13]}  Rb2+ {[%clk 0:00:03]} 154. Ka5 {[%clk 0:00:13]}  Rb8 {[%clk 0:00:02]} 155. Ka6 {[%clk 0:00:12]}  Kc7 {[%clk 0:00:01]} 156. Ka5 {[%clk 0:00:12]}  Ra8+ {[%clk 0:00:01]} 157. Kb4 {[%clk 0:00:12]}  Rh8 {[%clk 0:00:02]} 158. Kc4 {[%clk 0:00:12]}  Kd6 {[%clk 0:00:02]} 159. Kd4 {[%clk 0:00:13]}  Rh4+ {[%clk 0:00:03]} 160. Ke3 {[%clk 0:00:13]}  Rh5 {[%clk 0:00:03]} 161. Kf4 {[%clk 0:00:13]}  Re5 {[%clk 0:00:04]} 162. Kg4 {[%clk 0:00:13]}  Kd5 {[%clk 0:00:04]} 163. Kf4 {[%clk 0:00:14]}  Kd4 {[%clk 0:00:04]} 164. Kf3 {[%clk 0:00:14]}  Re1 {[%clk 0:00:02]} 165. Kf4 {[%clk 0:00:14]}  Rf1+ {[%clk 0:00:02]} 166. Kg5 {[%clk 0:00:15]}  Re1 {[%clk 0:00:02]} 167. Kf6 {[%clk 0:00:15]}  Kd5 {[%clk 0:00:02]} 168. Ke7 {[%clk 0:00:15]}  Re2 {[%clk 0:00:01]} 1/2-1/2


[Site "https://www.chess.com"]

[Event "Titled Tuesday Blitz September 13 Late 2022"]
[White "Kamsky, Gata"]
[Black "Bazeev, German"]
[WhiteFideId "2000024"]
[BlackFideId "24119350"]
[WhiteElo "2666"]
[BlackElo "2493"]
[Result "1/2-1/2"]
[Round "03"]
[TimeControl "180+1"]
[Date "2022.09.13"]
[WhiteClock "0:00:04"]
[BlackClock "0:00:06"]

1. e4 {[%clk 0:03:00]}  c5 {[%clk 0:02:59]} 2. Nc3 {[%clk 0:02:59]}  Nc6 {[%clk 0:02:59]} 3. Bc4 {[%clk 0:02:58]}  g6 {[%clk 0:02:59]} 4. d3 {[%clk 0:02:58]}  Bg7 {[%clk 0:02:59]} 5. Bg5 {[%clk 0:02:56]}  d6 {[%clk 0:02:59]} 6. a3 {[%clk 0:02:50]}  h6 {[%clk 0:02:58]} 7. Bh4 {[%clk 0:02:48]}  Nf6 {[%clk 0:02:26]} 8. f4 {[%clk 0:02:39]}  Qb6 {[%clk 0:02:07]} 9. Nge2 {[%clk 0:02:07]}  Bg4 {[%clk 0:02:05]} 10. Rb1 {[%clk 0:01:53]}  Nd4 {[%clk 0:01:54]} 11. Qd2 {[%clk 0:01:47]}  Bxe2 {[%clk 0:01:26]} 12. Nxe2 {[%clk 0:01:46]}  Nxe2 {[%clk 0:01:27]} 13. Qxe2 {[%clk 0:01:44]}  e6 {[%clk 0:01:27]} 14. O-O {[%clk 0:01:41]}  O-O {[%clk 0:01:18]} 15. Kh1 {[%clk 0:01:26]}  Rae8 {[%clk 0:01:14]} 16. Qf3 {[%clk 0:01:21]}  Qc6 {[%clk 0:01:07]} 17. b4 {[%clk 0:01:10]}  b5 {[%clk 0:01:07]} 18. e5 {[%clk 0:00:53]}  Nd5 {[%clk 0:01:00]} 19. Bxd5 {[%clk 0:00:51]}  exd5 {[%clk 0:00:56]} 20. bxc5 {[%clk 0:00:42]}  dxe5 {[%clk 0:00:40]} 21. fxe5 {[%clk 0:00:41]}  Qxc5 {[%clk 0:00:41]} 22. Bf6 {[%clk 0:00:33]}  Bxf6 {[%clk 0:00:36]} 23. exf6 {[%clk 0:00:32]}  a6 {[%clk 0:00:27]} 24. Rb4 {[%clk 0:00:31]}  d4 {[%clk 0:00:25]} 25. Qf4 {[%clk 0:00:28]}  Kh7 {[%clk 0:00:17]} 26. Rxd4 {[%clk 0:00:25]}  Qxc2 {[%clk 0:00:16]} 27. h4 {[%clk 0:00:24]}  Qe2 {[%clk 0:00:16]} 28. Rd7 {[%clk 0:00:20]}  Qe5 {[%clk 0:00:14]} 29. Qxe5 {[%clk 0:00:12]}  Rxe5 {[%clk 0:00:15]} 30. Rf3 {[%clk 0:00:10]}  g5 {[%clk 0:00:14]} 31. hxg5 {[%clk 0:00:08]}  hxg5 {[%clk 0:00:15]} 32. d4 {[%clk 0:00:07]}  Re1+ {[%clk 0:00:14]} 33. Kh2 {[%clk 0:00:07]}  Kg6 {[%clk 0:00:15]} 34. Kg3 {[%clk 0:00:07]}  Re6 {[%clk 0:00:12]} 35. d5 {[%clk 0:00:05]}  Rxf6 {[%clk 0:00:12]} 36. Rxf6+ {[%clk 0:00:05]}  Kxf6 {[%clk 0:00:13]} 37. Kg4 {[%clk 0:00:03]}  Kg6 {[%clk 0:00:09]} 38. Rd6+ {[%clk 0:00:03]}  f6 {[%clk 0:00:10]} 39. Rxa6 {[%clk 0:00:03]}  Rd8 {[%clk 0:00:09]} 40. d6 {[%clk 0:00:03]}  f5+ {[%clk 0:00:10]} 41. Kf3 {[%clk 0:00:04]}  Kf6 {[%clk 0:00:11]} 42. g4 {[%clk 0:00:04]}  fxg4+ {[%clk 0:00:06]} 43. Kxg4 {[%clk 0:00:04]}  Ke6 {[%clk 0:00:07]} 44. Rb6 {[%clk 0:00:03]}  Rxd6 {[%clk 0:00:06]} 45. Rxb5 {[%clk 0:00:04]}  Ra6 {[%clk 0:00:06]} 46. Kxg5 {[%clk 0:00:04]}  Rxa3 {[%clk 0:00:06]} 1/2-1/2


[Site "https://www.chess.com"]

[Event "Titled Tuesday Blitz September 13 Late 2022"]
[White "Kollars, Dmitrij"]
[Black "Putnam, Liam"]
[WhiteFideId "12909572"]
[BlackFideId "30938279"]
[WhiteElo "2584"]
[BlackElo "2031"]
[Result "1-0"]
[Round "03"]
[TimeControl "180+1"]
[Date "2022.09.13"]
[WhiteClock "0:00:56"]
[BlackClock "0:00:01"]

1. e4 {[%clk 0:03:00]}  c5 {[%clk 0:02:55]} 2. c3 {[%clk 0:03:00]}  Nf6 {[%clk 0:02:55]} 3. e5 {[%clk 0:03:00]}  Nd5 {[%clk 0:02:56]} 4. Bc4 {[%clk 0:03:00]}  Nb6 {[%clk 0:02:56]} 5. Bb3 {[%clk 0:03:01]}  Nc6 {[%clk 0:02:54]} 6. d4 {[%clk 0:02:58]}  cxd4 {[%clk 0:02:52]} 7. cxd4 {[%clk 0:02:59]}  d6 {[%clk 0:02:51]} 8. e6 {[%clk 0:02:58]}  Bxe6 {[%clk 0:02:47]} 9. d5 {[%clk 0:02:57]}  Nxd5 {[%clk 0:02:31]} 10. Bxd5 {[%clk 0:02:58]}  Bxd5 {[%clk 0:02:29]} 11. Qxd5 {[%clk 0:02:59]}  e6 {[%clk 0:02:30]} 12. Qd3 {[%clk 0:02:51]}  Be7 {[%clk 0:02:04]} 13. Nf3 {[%clk 0:02:48]}  O-O {[%clk 0:02:04]} 14. O-O {[%clk 0:02:48]}  d5 {[%clk 0:02:02]} 15. Nc3 {[%clk 0:02:48]}  Rc8 {[%clk 0:01:59]} 16. Be3 {[%clk 0:02:29]}  d4 {[%clk 0:01:52]} 17. Nxd4 {[%clk 0:02:16]}  e5 {[%clk 0:01:50]} 18. Nxc6 {[%clk 0:02:16]}  Qxd3 {[%clk 0:01:49]} 19. Nxe7+ {[%clk 0:02:16]}  Kh8 {[%clk 0:01:50]} 20. Nxc8 {[%clk 0:02:16]}  Rxc8 {[%clk 0:01:50]} 21. Bxa7 {[%clk 0:02:14]}  h5 {[%clk 0:01:48]} 22. Rfe1 {[%clk 0:02:09]}  Qc2 {[%clk 0:01:18]} 23. Re2 {[%clk 0:02:06]}  Qf5 {[%clk 0:01:17]} 24. Rd1 {[%clk 0:01:59]}  h4 {[%clk 0:00:50]} 25. h3 {[%clk 0:01:58]}  f6 {[%clk 0:00:49]} 26. a4 {[%clk 0:01:51]}  Qh5 {[%clk 0:00:40]} 27. f3 {[%clk 0:01:49]}  Kh7 {[%clk 0:00:39]} 28. Bf2 {[%clk 0:01:46]}  Rc4 {[%clk 0:00:31]} 29. Rd7 {[%clk 0:01:38]}  Qf5 {[%clk 0:00:18]} 30. Red2 {[%clk 0:01:31]}  Kh6 {[%clk 0:00:09]} 31. Rxb7 {[%clk 0:01:25]}  Qf4 {[%clk 0:00:06]} 32. Rbd7 {[%clk 0:01:20]}  g5 {[%clk 0:00:06]} 33. R7d6 {[%clk 0:01:14]}  Kg6 {[%clk 0:00:05]} 34. a5 {[%clk 0:01:06]}  Qf5 {[%clk 0:00:03]} 35. a6 {[%clk 0:01:02]}  Rb4 {[%clk 0:00:02]} 36. a7 {[%clk 0:00:59]}  Qc8 {[%clk 0:00:02]} 37. Rd8 {[%clk 0:00:57]}  Qc4 {[%clk 0:00:01]} 38. a8=Q {[%clk 0:00:56]} 1-0


[Site "https://www.chess.com"]

[Event "Titled Tuesday Blitz September 13 Late 2022"]
[White "Korchmar, Vasiliy"]
[Black "Jobava, Baadur"]
[WhiteFideId "24131750"]
[BlackFideId "13601520"]
[WhiteElo "2370"]
[BlackElo "2582"]
[Result "0-1"]
[Round "03"]
[TimeControl "180+1"]
[Date "2022.09.13"]
[WhiteClock "0:00:01"]
[BlackClock "0:01:37"]

1. e4 {[%clk 0:03:00]}  e6 {[%clk 0:02:59]} 2. d4 {[%clk 0:03:00]}  d5 {[%clk 0:03:00]} 3. e5 {[%clk 0:03:01]}  c5 {[%clk 0:03:00]} 4. c3 {[%clk 0:03:01]}  Nc6 {[%clk 0:03:01]} 5. Nf3 {[%clk 0:03:01]}  Bd7 {[%clk 0:03:02]} 6. Be2 {[%clk 0:02:59]}  Rc8 {[%clk 0:03:01]} 7. O-O {[%clk 0:02:56]}  a6 {[%clk 0:03:01]} 8. Re1 {[%clk 0:02:50]}  Nh6 {[%clk 0:03:00]} 9. Bxh6 {[%clk 0:02:50]}  gxh6 {[%clk 0:03:01]} 10. Nbd2 {[%clk 0:02:49]}  Qb6 {[%clk 0:02:59]} 11. Nf1 {[%clk 0:02:32]}  cxd4 {[%clk 0:02:56]} 12. cxd4 {[%clk 0:02:28]}  Bb4 {[%clk 0:02:56]} 13. Qb3 {[%clk 0:01:52]}  Na5 {[%clk 0:02:55]} 14. Qe3 {[%clk 0:01:49]}  Bxe1 {[%clk 0:02:55]} 15. Rxe1 {[%clk 0:01:50]}  Qxb2 {[%clk 0:02:52]} 16. Qxh6 {[%clk 0:01:46]}  Qb4 {[%clk 0:02:38]} 17. Ne3 {[%clk 0:01:31]}  Qf8 {[%clk 0:02:29]} 18. Qf6 {[%clk 0:01:30]}  Rg8 {[%clk 0:02:29]} 19. Ng5 {[%clk 0:01:02]}  Qg7 {[%clk 0:02:26]} 20. f4 {[%clk 0:00:47]}  Qxf6 {[%clk 0:02:21]} 21. exf6 {[%clk 0:00:48]}  h6 {[%clk 0:02:21]} 22. Nf3 {[%clk 0:00:40]}  Rc3 {[%clk 0:02:15]} 23. Bf1 {[%clk 0:00:33]}  Nc6 {[%clk 0:02:15]} 24. f5 {[%clk 0:00:32]}  Kd8 {[%clk 0:02:14]} 25. Kf2 {[%clk 0:00:11]}  Ra3 {[%clk 0:02:11]} 26. Re2 {[%clk 0:00:06]}  exf5 {[%clk 0:02:06]} 27. Nxd5 {[%clk 0:00:06]}  Be6 {[%clk 0:02:06]} 28. Ne7 {[%clk 0:00:04]}  Re8 {[%clk 0:01:58]} 29. d5 {[%clk 0:00:03]}  Nxe7 {[%clk 0:01:55]} 30. fxe7+ {[%clk 0:00:03]}  Rxe7 {[%clk 0:01:56]} 31. dxe6 {[%clk 0:00:03]}  Rxe6 {[%clk 0:01:56]} 32. Rd2+ {[%clk 0:00:01]}  Kc7 {[%clk 0:01:57]} 33. Nd4 {[%clk 0:00:01]}  Rd6 {[%clk 0:01:56]} 34. Rc2+ {[%clk 0:00:02]}  Kb6 {[%clk 0:01:56]} 35. Nxf5 {[%clk 0:00:02]}  Rf6 {[%clk 0:01:55]} 36. g4 {[%clk 0:00:02]}  h5 {[%clk 0:01:56]} 37. h3 {[%clk 0:00:02]}  hxg4 {[%clk 0:01:56]} 38. hxg4 {[%clk 0:00:03]}  Rc6 {[%clk 0:01:56]} 39. Rb2+ {[%clk 0:00:03]}  Kc7 {[%clk 0:01:56]} 40. Bg2 {[%clk 0:00:04]}  Rb6 {[%clk 0:01:55]} 41. Rc2+ {[%clk 0:00:04]}  Kb8 {[%clk 0:01:56]} 42. Ne7 {[%clk 0:00:03]}  Rf6+ {[%clk 0:01:55]} 43. Kg1 {[%clk 0:00:03]}  Rf4 {[%clk 0:01:53]} 44. Rc8+ {[%clk 0:00:03]}  Ka7 {[%clk 0:01:53]} 45. Rc7 {[%clk 0:00:04]}  Rb4 {[%clk 0:01:49]} 46. Nc6+ {[%clk 0:00:03]}  Kb6 {[%clk 0:01:50]} 47. Rxb7+ {[%clk 0:00:03]}  Kxb7 {[%clk 0:01:49]} 48. Nxb4+ {[%clk 0:00:04]}  Kb6 {[%clk 0:01:49]} 49. Bd5 {[%clk 0:00:02]}  Kc5 {[%clk 0:01:49]} 50. Nc2 {[%clk 0:00:01]}  Rg3+ {[%clk 0:01:48]} 51. Kf2 {[%clk 0:00:01]}  Rxg4 {[%clk 0:01:49]} 52. Bb3 {[%clk 0:00:01]}  a5 {[%clk 0:01:48]} 53. Ne3 {[%clk 0:00:01]}  Rf4+ {[%clk 0:01:48]} 54. Ke2 {[%clk 0:00:02]}  f6 {[%clk 0:01:47]} 55. Nd5 {[%clk 0:00:02]}  Rf5 {[%clk 0:01:46]} 56. Ne3 {[%clk 0:00:02]}  Re5 {[%clk 0:01:46]} 57. Kd3 {[%clk 0:00:02]}  Re8 {[%clk 0:01:38]} 58. Ng4 {[%clk 0:00:02]}  f5 {[%clk 0:01:37]} 59. Ne3 {[%clk 0:00:02]}  f4 {[%clk 0:01:38]} 60. Ng4 {[%clk 0:00:02]}  f3 {[%clk 0:01:37]} 61. Nf2 {[%clk 0:00:03]}  Kb4 {[%clk 0:01:37]} 62. Bd5 {[%clk 0:00:02]}  Rd8 {[%clk 0:01:37]} 63. Ke4 {[%clk 0:00:02]}  a4 {[%clk 0:01:37]} 64. Bc6 {[%clk 0:00:01]}  Rc8 {[%clk 0:01:36]} 65. Bd5 {[%clk 0:00:01]}  Rc3 {[%clk 0:01:36]} 66. Nd3+ {[%clk 0:00:01]}  Ka3 {[%clk 0:01:37]} 0-1


[Site "https://www.chess.com"]